lending/lending_fUSD_20251124
["ID","MTS","AMOUNT","RATE_DAILY","PERIOD"]
[394819195,1763983841245,-153.3100467,0.00017999,2]
[394819196,1763983841253,-150.0,0.00017999,2]
[394819197,1763983841262,-1196.32,0.00017999,2]
[394819198,1763983841272,-500.0,0.00017999,2]
[394819199,1763983841281,-500.0,0.00017999,2]
[394819200,1763983841289,-500.0,0.00017999,2]
[394819201,1763983841298,-500.0,0.00017999,2]
[394819202,1763983841307,-500.0,0.00017999,2]
[394819203,1763983841317,-500.0,0.00017999,2]
[394819204,1763983841326,-150.56621767,0.00017999,2]
[394819205,1763983841335,-150.0,0.00017999,2]
[394819206,1763983841345,-150.0,0.00017999,2]
[394819207,1763983841355,-150.0,0.00017999,2]
[394819208,1763983841364,-500.0,0.00017999,2]
[394819209,1763983841374,-500.0,0.00017999,2]
[394819210,1763983841383,-500.0,0.00017999,2]
[394819211,1763983841392,-500.0,0.00017999,2]
[394819212,1763983841402,-500.0,0.00017999,2]
[394819213,1763983841411,-500.0,0.00017999,2]
[394819214,1763983841420,-150.0,0.00017999,2]
[394819215,1763983841429,-150.49285103,0.00017999,2]
[394819216,1763983841438,-150.0,0.00017999,2]
[394819217,1763983841448,-150.50043881,0.00017999,2]
[394819218,1763983841458,-152.26759261,0.00017999,2]
[394819219,1763983841467,-150.0,0.00017999,2]
[394819220,1763983841476,-500.0,0.00017999,2]
[394819221,1763983841485,-150.0,0.00017999,2]
[394819222,1763983841494,-500.0,0.00017999,2]
[394819223,1763983841503,-485.41944203,0.00017999,2]
[394819224,1763983841512,-500.0,0.00017999,2]
[394819225,1763983841521,-500.0,0.00017999,2]
[394819226,1763983841530,-500.0,0.00017999,2]
[394819227,1763983841539,-500.0,0.00017999,2]
[394819228,1763983841549,-500.0,0.00017999,2]
[394819229,1763983841558,-641.7495824,0.00017999,2]
[394819230,1763983841567,-500.0,0.00017999,2]
[394819231,1763983841576,-500.0,0.00017999,2]
[394819232,1763983841585,-336.03492657,0.00017999,2]
[394819233,1763983841595,-500.0,0.00017999,2]
[394819234,1763983841603,-500.0,0.00017999,2]
[394819235,1763983841612,-500.0,0.00017999,2]
[394819236,1763983841621,-500.0,0.00017999,2]
[394819237,1763983841631,-500.0,0.00017999,2]
[394819238,1763983841640,-500.0,0.00017999,2]
[394819239,1763983841652,-439.74156925,0.00017999,2]
[394819240,1763983841662,-500.0,0.00017999,2]
[394819241,1763983841671,-174.57945306,0.00017999,2]
[394819242,1763983841680,-500.0,0.00017999,2]
[394819243,1763983841689,-500.0,0.00017999,2]
[394819244,1763983841698,-500.0,0.00017999,2]
[394819245,1763983841707,-500.0,0.00017999,2]
[394819246,1763983841872,-500.0,0.00017999,2]
[394819247,1763983841881,-500.0,0.00017999,2]
[394819248,1763983841891,-500.0,0.00017999,2]
[394819249,1763983841901,-500.0,0.00017999,2]
[394819250,1763983841911,-500.0,0.00017999,2]
[394819251,1763983841921,-500.0,0.00017999,2]
[394819252,1763983841931,-500.0,0.00017999,2]
[394819253,1763983841940,-438.72,0.00017999,2]
[394819254,1763983841950,-446.74332451,0.00017999,2]
[394819255,1763983841960,-500.0,0.00017999,2]
[394819256,1763983841971,-500.0,0.00017999,2]
[394819257,1763983841981,-363.29164224,0.00017999,2]
[394819258,1763983841991,-614.36921395,0.00017999,2]
[394819259,1763983842000,-388.99961571,0.00017999,2]
[394819260,1763983842010,-500.0,0.00017999,2]
[394819261,1763983842020,-500.0,0.00017999,2]
[394819262,1763983842028,-500.0,0.00017999,2]
[394819263,1763983842038,-621.69290244,0.00017999,2]
[394819264,1763983842047,-1010.58945076,0.00018,2]
[394819265,1763983842056,-2910605.80772745,0.00018,2]
[394819266,1763983842071,-8656.50133999,0.00018,2]
[394819267,1763983842082,-8947.21879473,0.00018,2]
[394819268,1763983842094,-8943.78386462,0.00018,2]
[394819269,1763983842106,-9077.54866152,0.00018,2]
[394819270,1763983842118,-8943.84023489,0.00018,2]
[394819271,1763983842141,-43148.80411134,0.00018,2]
[394819272,1763983842151,-938.69506257,0.00018,2]
[394819273,1763983842167,-413.34,0.00018,2]
[394819274,1763983842190,-3940.96950511,0.00018,2]
[394819275,1763983842202,-1608.1835712,0.00018,2]
[394819276,1763983842219,-24678.1547668,0.00018,2]
[394819277,1763983842232,-911.99184701,0.00018,2]
[394819278,1763983842242,-449.87103099,0.00018,2]
[394819280,1763983843508,-167.54,0.00024826,30]
[394819281,1763983843535,-2741.19,0.00026116,120]
[394819282,1763983843559,-2741.19,0.00026145,120]
[394819283,1763983843583,-2741.19,0.00026175,120]
[394819284,1763983843607,-2741.19,0.00026207,120]
[394819285,1763983843630,-2741.19,0.00026241,120]
[394819286,1763983843662,-2741.19,0.00026277,120]
[394819287,1763983843693,-2741.19,0.00026314,120]
[394819288,1763983843718,-2741.19,0.00026355,120]
[394819290,1763983843743,-2741.19,0.00026398,120]
[394819291,1763983843768,-2741.19,0.00026444,120]
[394819292,1763983843795,-1600.0,0.0002646,120]
[394819293,1763983843821,-2741.19,0.00026494,120]
[394819294,1763983843846,-2741.19,0.00026548,120]
[394819295,1763983843872,-2741.19,0.00026607,120]
[394819296,1763983843898,-2741.19,0.00026673,120]
[394819297,1763983843923,-2741.19,0.00026746,120]
[394819298,1763983843949,-2741.19,0.0002683,120]
[394819299,1763983843975,-2741.19,0.00026926,120]
[394819300,1763983844003,-2741.19,0.0002704,120]
[394819301,1763983844028,-2741.19,0.00027179,120]
[394819302,1763983844056,-2771.979955,0.00028,60]
[394819303,1763983844086,-151.0,0.00031439,31]
[394819304,1763983844114,-151.0,0.00031439,31]
[394819305,1763983844145,-151.000006,0.00031439,31]
[394819306,1763983844174,-151.0,0.00031439,31]
[394819307,1763983844202,-151.0,0.00031439,31]
[394819308,1763983844228,-151.0,0.00031439,31]
[394819309,1763983844254,-151.0,0.00031439,31]
[394819310,1763983844280,-151.0,0.00031439,31]
[394819311,1763983844310,-151.0,0.00031439,31]
[394819312,1763983844336,-155.272748,0.00031439,31]
[394819313,1763983844365,-151.0,0.00031439,31]
[394819314,1763983844391,-151.0,0.00031439,31]
[394819315,1763983844419,-154.418299,0.00031439,31]
[394819316,1763983844446,-151.0,0.00031439,31]
[394819317,1763983844474,-151.0,0.00031439,31]
[394819318,1763983844501,-151.0,0.00031439,31]
[394819319,1763983844529,-151.0,0.00031439,31]
[394819320,1763983844560,-151.0,0.00031439,31]
[394819321,1763983844588,-151.0,0.00031439,31]
[394819322,1763983844614,-151.0,0.00031439,31]
[394819323,1763983844638,-151.0,0.00031439,31]
[394819324,1763983844664,-151.0,0.00031439,31]
[394819325,1763983844691,-153.876992,0.00031439,31]
[394819326,1763983844716,-153.648457,0.000317,31]
[394819327,1763983844742,-151.0,0.000317,31]
[394819328,1763983844772,-156.219988,0.000317,31]
[394819329,1763983844797,-161.940808,0.000317,31]
[394819330,1763983844824,-151.0,0.000317,31]
[394819331,1763983844850,-151.0,0.000317,31]
[394819332,1763983844876,-151.0,0.000317,31]
[394819333,1763983844906,-223.0,0.00034222,120]
[394819334,1763983844933,-167.812,0.0003464,39]
[394819335,1763983844960,-1353.784,0.0003464,39]
[394819336,1763983844985,-169.0,0.000349,120]
[394819337,1763983845014,-223.0,0.00035502,120]
[394819338,1763983845071,-500.0,0.00035616,90]
[394819339,1763983845115,-160.845747,0.00035616,31]
[394819340,1763983845146,-151.0,0.00035616,31]
[394819341,1763983845178,-151.0,0.00035616,31]
[394819342,1763983845204,-151.0,0.00035616,31]
[394819343,1763983845229,-153.450386,0.00035616,31]
[394819344,1763983845254,-1000.0,0.00035616,90]
[394819345,1763983845279,-161.866969,0.00035616,31]
[394819346,1763983845492,-151.0,0.00035616,31]
[394819347,1763983845526,-151.0,0.00035616,31]
[394819348,1763983845555,-700.0,0.00035616,120]
[394819349,1763983845582,-198.533903,0.00035616,30]
[394819350,1763983845609,-198.533903,0.00035616,30]
[394819353,1763983845635,-198.533903,0.00035616,30]
[394819356,1763983845661,-198.533903,0.00035616,30]
[394819359,1763983845691,-167.950889,0.00035616,31]
[394819360,1763983845717,-151.0,0.00035616,31]
[394819361,1763983845743,-167.950889,0.00035616,31]
[394819362,1763983845769,-167.950889,0.00035616,31]
[394819363,1763983845795,-189.623393,0.00035616,31]
[394819364,1763983845822,-167.950889,0.00035616,31]
[394819365,1763983845849,-189.623393,0.00035616,31]
[394819366,1763983845877,-189.623393,0.00035616,31]
[394819367,1763983845902,-189.623393,0.00035616,31]
[394819368,1763983845929,-299.127929,0.00035616,31]
[394819369,1763983845957,-1000.0,0.00035616,120]
[394819370,1763983845987,-600.0,0.00035616,30]
[394819371,1763983846013,-1369.0,0.00035616,30]
[394819372,1763983846049,-157.865048,0.0003589,31]
[394819373,1763983846077,-151.0,0.0003589,31]
[394819377,1763983846102,-156.931941,0.0003589,31]
[394819378,1763983846136,-160.880663,0.0003589,31]
[394819379,1763983846167,-209.127849,0.0003589,31]
[394819380,1763983846198,-199.150033,0.0003589,31]
[394819381,1763983846231,-151.0,0.0003589,31]
[394819382,1763983846261,-545.7157359,0.0003589,90]
[394819383,1763983846290,-180.087539,0.0003589,31]
[394819384,1763983846317,-151.0,0.0003589,31]
[394819386,1763983846343,-151.0,0.0003589,31]
[394819390,1763983846367,-164.839869,0.0003589,31]
[394819392,1763983846391,-151.0,0.0003589,31]
[394819393,1763983846416,-178.386612,0.0003589,31]
[394819394,1763983846440,-151.0,0.0003589,31]
[394819395,1763983846465,-164.248103,0.0003589,31]
[394819396,1763983846491,-1000.0,0.0003589,90]
[394819397,1763983846526,-700.0,0.0003589,120]
[394819398,1763983846557,-1000.0,0.0003589,120]
[394819399,1763983846585,-600.0,0.0003589,30]
[394819400,1763983846619,-601.9368741,0.00035999,120]
[394819401,1763983846646,-1262.95,0.00036,36]
[394819402,1763983846675,-151.0,0.00036,31]
[394819403,1763983846703,-151.0,0.00036,31]
[394819404,1763983846737,-151.0,0.00036,31]
[394819405,1763983846763,-151.0,0.00036,31]
[394819406,1763983846790,-198.533903,0.00036,30]
[394819408,1763983846818,-198.533903,0.00036,30]
[394819409,1763983846853,-198.533903,0.00036,30]
[394819410,1763983846881,-198.533903,0.00036,30]
[394819411,1763983846911,-167.950889,0.00036,31]
[394819412,1763983846939,-151.0,0.00036,31]
[394819413,1763983846966,-167.950889,0.00036,31]
[394819414,1763983846993,-167.950889,0.00036,31]
[394819415,1763983847020,-189.623393,0.00036,31]
[394819416,1763983847048,-167.950891,0.00036,31]
[394819417,1763983847076,-189.623393,0.00036,31]
[394819418,1763983847104,-189.623393,0.00036,31]
[394819419,1763983847134,-189.623392,0.00036,31]
[394819420,1763983847173,-151.0,0.00036164,31]
[394819421,1763983847202,-151.0,0.00036164,31]
[394819422,1763983847230,-151.0,0.00036164,31]
[394819423,1763983847257,-151.0,0.00036164,31]
[394819424,1763983847282,-196.099138,0.00036164,31]
[394819425,1763983847309,-1000.0,0.00036164,90]
[394819426,1763983847338,-700.0,0.00036164,120]
[394819427,1763983847370,-1000.0,0.00036164,120]
[394819428,1763983847400,-600.0,0.00036164,30]
[394819429,1763983847425,-223.41765528,0.00036359,120]
[394819430,1763983847463,-1000.0,0.00036438,90]
[394819431,1763983847495,-1000.0,0.00036438,120]
[394819432,1763983847522,-527.16,0.00036438,30]
[394819433,1763983847555,-1000.0,0.00036712,90]
[394819434,1763983847587,-1000.0,0.00036712,120]
[394819435,1763983847620,-160.726261,0.00036986,31]
[394819436,1763983847646,-151.0,0.00036986,31]
[394819437,1763983847673,-151.0,0.00036986,31]
[394819438,1763983847700,-160.746115,0.00036986,31]
[394819439,1763983847727,-198.533903,0.00036986,30]
[394819440,1763983847755,-198.533903,0.00036986,30]
[394819441,1763983847781,-198.533903,0.00036986,30]
[394819442,1763983847808,-198.53391,0.00036986,30]
[394819443,1763983847835,-1000.0,0.00036986,120]
[394819444,1763983847862,-472.61,0.00036986,30]
[394819445,1763983847886,-500.0,0.00037,30]
[394819446,1763983847917,-151.0,0.0003726,31]
[394819447,1763983847943,-151.0,0.0003726,31]
[394819448,1763983847968,-151.0,0.0003726,31]
[394819449,1763983847997,-1000.0,0.0003726,120]
[394819450,1763983848172,-3723.24333213,0.000374,30]
[394819451,1763983848204,-500.0,0.00037534,120]
[394819452,1763983848234,-1000.0,0.00037534,120]
[394819453,1763983848263,-500.0,0.00037808,120]
[394819454,1763983848290,-1000.0,0.00037808,120]
[394819455,1763983848318,-158.96394041,0.00038,120]
[394819456,1763983848343,-500.0,0.00038,30]
[394819457,1763983848374,-2000.0,0.00038,38]
[394819458,1763983848399,-151.0,0.00038,31]
[394819459,1763983848425,-151.0,0.00038,31]
[394819460,1763983848449,-775.96968526,0.00038007,30]
[394819461,1763983848473,-507.05055134,0.00038007,30]
[394819462,1763983848497,-684.57085447,0.00038007,30]
[394819463,1763983848521,-588.39720235,0.00038007,30]
[394819464,1763983848545,-511.20249531,0.00038007,30]
[394819465,1763983848572,-151.0,0.00038082,31]
[394819466,1763983848597,-151.0,0.00038082,31]
[394819467,1763983848623,-500.0,0.00038082,120]
[394819468,1763983848649,-1000.0,0.00038082,120]
[394819469,1763983848678,-256.0,0.00038249,120]
[394819470,1763983848704,-500.0,0.00038356,120]
[394819471,1763983848731,-553.04838023,0.00038356,120]
[394819472,1763983848758,-256.0,0.00038549,120]
[394819473,1763983848784,-500.0,0.0003863,120]
[394819474,1763983848810,-500.0,0.0003863,120]
[394819475,1763983848835,-300.04862259,0.00038679,30]
[394819476,1763983848859,-3820.0172,0.00038888,30]
[394819477,1763983848885,-500.0,0.00038904,120]
[394819478,1763983848909,-511.12963602,0.00038904,120]
[394819479,1763983848934,-277.55631167,0.00039,120]
[394819480,1763983848959,-2000.0,0.00039,39]
[394819481,1763983848984,-500.0,0.00039178,120]
[394819482,1763983849010,-1364.02,0.000393,30]
[394819483,1763983849035,-224.0362382,0.00039452,120]
[394819484,1763983849060,-7297.0,0.000395,30]
[394819485,1763983849089,-50000.0,0.0004,40]
[394819486,1763983849113,-336.34286237,0.0004,30]
[394819487,1763983849142,-330.7786,0.0004,38]
[394819488,1763983849168,-153.52002484,0.0004,30]
[394819489,1763983849192,-2000.0,0.0004,60]
[394819490,1763983849218,-326.93618297,0.0004,30]
[394819491,1763983849245,-206.77,0.000405,30]
[394819492,1763983849270,-2000.0,0.000405,60]
[394819493,1763983849295,-250.67174499,0.00040658,120]
[394819494,1763983849320,-500.0,0.00040662,30]
[394819495,1763983849344,-500.0,0.00040662,30]
[394819496,1763983849369,-500.0,0.00040662,30]
[394819497,1763983849393,-3748.52704677,0.000408,30]
[394819498,1763983849418,-167.54,0.00040808,30]
[394819499,1763983849444,-330.14217,0.00040873,120]
[394819500,1763983849468,-200.0,0.000409,120]
[394819501,1763983849493,-500.0,0.00040936,30]
[394819502,1763983849518,-500.0,0.00040936,30]
[394819503,1763983849543,-50000.0,0.00041,41]
[394819504,1763983849567,-1364.02,0.00041,30]
[394819505,1763983849592,-3032.0,0.00041,120]
[394819506,1763983849616,-2000.0,0.00041,60]
[394819507,1763983849641,-151.0,0.00041,120]
[394819508,1763983849666,-178.350765,0.00041,120]
[394819509,1763983849691,-760.0,0.00041096,120]
[394819510,1763983849716,-1100.0,0.00041155,60]
[394819511,1763983849739,-500.0,0.0004121,30]
[394819512,1763983849763,-500.0,0.0004121,30]
[394819513,1763983849787,-760.0,0.00041233,120]
[394819514,1763983849811,-552.13401393,0.0004133,120]
[394819515,1763983849836,-760.0,0.0004137,120]
[394819516,1763983849861,-3698.56545454,0.0004139,120]
[394819517,1763983849898,-103034.23554332,0.000414,30]
[394819518,1763983849935,-500.0,0.00041484,30]
[394819519,1763983849968,-500.0,0.00041484,30]
[394819520,1763983849998,-755.68515863,0.000415,38]
[394819521,1763983850027,-2000.0,0.000415,60]
[394819522,1763983850054,-760.0,0.00041507,120]
[394819523,1763983850080,-500.0,0.00041624,120]
[394819524,1763983850107,-223.922398,0.00041624,120]
[394819525,1763983850134,-760.0,0.00041644,120]
[394819526,1763983850161,-224.65737187,0.000417,60]
[394819527,1763983850187,-1100.0,0.00041703,60]
[394819528,1763983850214,-500.0,0.00041758,30]
[394819529,1763983850239,-500.0,0.00041758,30]
[394819530,1763983850263,-760.0,0.00041781,120]
[394819531,1763983850291,-1010.3864859,0.000418,30]
[394819532,1763983850317,-356.06513064,0.000419,120]
[394819533,1763983850347,-193.19426834,0.000419,120]
[394819534,1763983850374,-1133.64702518,0.000419,120]
[394819535,1763983850399,-225.18887493,0.000419,120]
[394819536,1763983850426,-327.55923434,0.000419,120]
[394819537,1763983850451,-760.0,0.00041918,120]
[394819538,1763983850476,-649.99204273,0.00041966,30]
[394819539,1763983850501,-523.79890469,0.00041966,30]
[394819540,1763983850527,-1000.0,0.00041973,120]
[394819541,1763983850557,-1000.0,0.00041973,120]
[394819542,1763983850583,-1050.14436788,0.00041973,120]
[394819543,1763983850608,-500.0,0.00041977,60]
[394819544,1763983850835,-1096.0,0.00041979,30]
[394819545,1763983850860,-1096.0,0.00041979,30]
[394819546,1763983850885,-1096.0,0.00041979,30]
[394819547,1763983850909,-1096.0,0.00041979,30]
[394819548,1763983850935,-150.0,0.0004198,120]
[394819549,1763983850960,-817.09789212,0.00041999,120]
[394819550,1763983850988,-50000.0,0.00042,42]
[394819551,1763983851013,-196.73516654,0.00042,120]
[394819552,1763983851037,-416.6691691,0.00042,120]
[394819553,1763983851061,-448.48204028,0.00042,120]
[394819554,1763983851088,-300.0,0.00042,120]
[394819555,1763983851112,-772.21564925,0.00042,30]
[394819556,1763983851140,-200.0,0.00042,30]
[394819557,1763983851167,-1000.64978974,0.00042,120]
[394819558,1763983851191,-3000.9,0.00042,120]
[394819559,1763983851216,-3000.0,0.00042,120]
[394819560,1763983851245,-720125.4632,0.00042031,30]
[394819561,1763983851271,-500.0,0.00042032,30]
[394819562,1763983851296,-500.0,0.00042032,30]
[394819563,1763983851322,-760.0,0.00042055,120]
[394819564,1763983851347,-1000.0,0.000421,120]
[394819565,1763983851372,-1000.0,0.000421,120]
[394819566,1763983851397,-1000.0,0.000421,120]
[394819567,1763983851422,-1000.0,0.000421,120]
[394819568,1763983851447,-1000.0,0.000421,120]
[394819569,1763983851472,-1000.0,0.000421,120]
[394819570,1763983851497,-1000.0,0.000421,120]
[394819571,1763983851522,-1000.0,0.000421,120]
[394819572,1763983851547,-1000.0,0.000421,120]
[394819573,1763983851572,-158.04388927,0.00042121,120]
[394819574,1763983851596,-760.0,0.00042192,120]
[394819575,1763983851623,-33802.759198,0.0004224,35]
[394819576,1763983851651,-50000.0,0.0004224,36]
[394819577,1763983851677,-50000.0,0.0004224,37]
[394819578,1763983851702,-50000.0,0.0004224,38]
[394819579,1763983851728,-50000.0,0.0004224,39]
[394819580,1763983851772,-1200.0,0.00042241,30]
[394819581,1763983851801,-1100.0,0.00042251,60]
[394819582,1763983851826,-180.76074917,0.00042252,30]
[394819583,1763983851851,-3681.0,0.000423,120]
[394819584,1763983851876,-500.0,0.00042306,30]
[394819585,1763983851900,-816.66,0.00042306,30]
[394819586,1763983851926,-760.0,0.00042329,120]
[394819587,1763983851951,-150.0,0.00042451,120]
[394819588,1763983851976,-1000.0,0.00042466,30]
[394819589,1763983852000,-1000.0,0.00042466,30]
[394819590,1763983852025,-1000.0,0.00042466,30]
[394819591,1763983852051,-1000.0,0.00042466,30]
[394819592,1763983852078,-1000.0,0.00042466,30]
[394819593,1763983852109,-1000.0,0.00042466,30]
[394819594,1763983852136,-1000.0,0.00042466,30]
[394819595,1763983852163,-1000.0,0.00042466,30]
[394819596,1763983852188,-1139.0,0.00042466,30]
[394819597,1763983852216,-760.0,0.00042466,120]
[394819598,1763983852241,-1488.0,0.000425,120]
[394819599,1763983852266,-150.0,0.00042546,120]
[394819600,1763983852291,-221.3137655,0.00042569,120]
[394819601,1763983852316,-500.0,0.0004258,30]
[394819602,1763983852340,-760.0,0.00042603,120]
[394819603,1763983852371,-760.0,0.0004274,120]
[394819604,1763983852396,-1100.0,0.00042799,60]
[394819605,1763983852421,-10869.73732209,0.000428,120]
[394819606,1763983852446,-500.0,0.00042854,30]
[394819607,1763983852471,-760.0,0.00042877,120]
[394819608,1763983852496,-500.0,0.0004288,120]
[394819609,1763983852522,-213.0,0.0004295,30]
[394819610,1763983852547,-150.0,0.00043,120]
[394819611,1763983852571,-293.93882279,0.00043,120]
[394819612,1763983852595,-330.34572898,0.00043,120]
[394819613,1763983852620,-167.72725691,0.00043,120]
[394819614,1763983852644,-1007.04810848,0.00043,120]
[394819615,1763983852668,-207.11621451,0.00043,120]
[394819616,1763983852692,-332.20863279,0.00043,120]
[394819617,1763983852719,-1364.02,0.00043,30]
[394819618,1763983852743,-204.22,0.00043014,120]
[394819619,1763983852767,-760.0,0.00043014,120]
[394819620,1763983852791,-500.0,0.00043073,60]
[394819621,1763983852815,-500.0,0.00043128,30]
[394819622,1763983852841,-760.0,0.00043151,120]
[394819623,1763983852867,-150.0,0.00043178,120]
[394819624,1763983852892,-1628.150582,0.000432,120]
[394819625,1763983852917,-356.06513064,0.000432,120]
[394819626,1763983852943,-193.19426834,0.000432,120]
[394819627,1763983852968,-1133.64702518,0.000432,120]
[394819628,1763983852993,-225.18887493,0.000432,120]
[394819629,1763983853017,-327.55923434,0.000432,120]
[394819630,1763983853044,-150.0,0.00043203,120]
[394819631,1763983853072,-1981.7954,0.0004322,30]
[394819632,1763983853099,-760.0,0.00043288,120]
[394819633,1763983853128,-665.0,0.000433,120]
[394819634,1763983853156,-1100.0,0.00043347,60]
[394819635,1763983853183,-500.0,0.00043402,30]
[394819636,1763983853211,-760.0,0.00043425,120]
[394819637,1763983853240,-150.0,0.0004345,120]
[394819638,1763983853413,-150.0,0.0004345,120]
[394819639,1763983853441,-300.0,0.00043452,30]
[394819640,1763983853469,-760.0,0.00043562,120]
[394819641,1763983853495,-760.0,0.00043699,120]
[394819642,1763983853522,-150.0,0.00043699,120]
[394819643,1763983853547,-1360.59240216,0.000437,120]
[394819644,1763983853572,-3681.0,0.000437,120]
[394819645,1763983853599,-150.0,0.00043726,120]
[394819646,1763983853624,-500.54681104,0.000438,30]
[394819647,1763983853649,-784.73224095,0.000438,30]
[394819648,1763983853675,-738.35238217,0.000438,120]
[394819649,1763983853700,-520.26,0.000438,120]
[394819650,1763983853725,-760.0,0.00043836,120]
[394819651,1763983853752,-150.0,0.00043951,120]
[394819652,1763983853781,-150.0,0.00043954,120]
[394819653,1763983853807,-760.0,0.00043973,120]
[394819654,1763983853834,-150.0,0.00043975,120]
[394819655,1763983853860,-511.944234,0.00043978,120]
[394819656,1763983853887,-2562.32558083,0.00043987,120]
[394819657,1763983853915,-150.0,0.00043998,120]
[394819658,1763983853945,-575.0,0.00044,120]
[394819659,1763983853973,-1000.0,0.00044,120]
[394819660,1763983854001,-1000.0,0.00044,120]
[394819661,1763983854030,-1000.0,0.00044,120]
[394819662,1763983854059,-1000.0,0.00044,120]
[394819663,1763983854090,-1000.0,0.00044,120]
[394819664,1763983854117,-1000.0,0.00044,120]
[394819665,1763983854148,-1000.0,0.00044,120]
[394819666,1763983854177,-1000.0,0.00044,120]
[394819667,1763983854207,-395.80859228,0.00044,120]
[394819668,1763983854233,-1243.74815248,0.00044,120]
[394819669,1763983854259,-1621.74280981,0.00044,120]
[394819670,1763983854284,-244.31889464,0.00044,120]
[394819671,1763983854309,-400.0,0.00044,120]
[394819672,1763983854337,-200.0,0.00044,30]
[394819673,1763983854363,-176.0,0.00044,120]
[394819674,1763983854388,-152.0,0.00044,120]
[394819675,1763983854413,-3510.76414427,0.00044,120]
[394819676,1763983854438,-549.079311,0.00044,57]
[394819677,1763983854464,-1096.0,0.00044078,30]
[394819678,1763983854488,-1096.0,0.00044078,30]
[394819679,1763983854514,-760.0,0.0004411,120]
[394819680,1763983854539,-500.0,0.00044169,60]
[394819681,1763983854564,-764.6985216,0.00044247,120]
[394819682,1763983854589,-158.67499934,0.0004425,120]
[394819683,1763983854617,-1991.0,0.000443,120]
[394819684,1763983854643,-354.0,0.000443,120]
[394819685,1763983854669,-1100.0,0.00044443,60]
[394819686,1763983854694,-1262.44594961,0.000445,120]
[394819687,1763983854720,-176.0,0.000445,120]
[394819688,1763983854746,-152.0,0.000445,120]
[394819689,1763983854770,-356.06513064,0.000445,120]
[394819690,1763983854794,-193.19426834,0.000445,120]
[394819691,1763983854819,-1133.64702518,0.000445,120]
[394819692,1763983854847,-225.18887493,0.000445,120]
[394819693,1763983854872,-327.55923434,0.000445,120]
[394819694,1763983854897,-221.3137655,0.00044761,120]
[394819695,1763983854921,-434.30536283,0.000448,120]
[394819696,1763983854946,-360.97089163,0.0004489,120]
[394819697,1763983854971,-1000.0,0.000449,120]
[394819698,1763983854997,-1000.0,0.000449,120]
[394819699,1763983855023,-1000.0,0.000449,120]
[394819700,1763983855049,-1000.0,0.000449,120]
[394819701,1763983855074,-1000.0,0.000449,120]
[394819702,1763983855100,-1000.0,0.000449,120]
[394819703,1763983855127,-1000.0,0.000449,120]
[394819704,1763983855153,-1000.0,0.000449,120]
[394819705,1763983855182,-614.80680602,0.000449,30]
[394819706,1763983855207,-10478.49,0.000449,120]
[394819707,1763983855232,-213.0,0.0004496,30]
[394819708,1763983855259,-50000.0,0.00045,45]
[394819709,1763983855284,-1280.68892435,0.00045,120]
[394819710,1763983855309,-160.88069549,0.00045,120]
[394819711,1763983855333,-1147.9961176,0.00045,120]